{"text_format":"3","workbook":"xlsx","n_sheets":4,"sheets":["Tok novca","Mesečni prihod","Mesečni trošak","PODACI IZ GRAFIKONA"],"not_rendered":{"charts":1,"defined_names":10},"read":"whole","date_system":"1900"}

{"sheet":"Tok novca","index":0,"n_rows":9,"n_cols":5,"rows_kept":9}
[null,"Ime"]
[null,"Porodični budžet"]
[null,{"$f":"TEXT(TODAY(),\"mmmm\")","v":"January"}]
[null,{"$f":"YEAR(TODAY())","v":2017}]
[null,"Napomena: Tabela „Tok novca“ automatski se izračunava na osnovu unosa sa radnih listova „Mesečni prihod“ i „Mesečni trošak“"]
[null,"Tok novca","Predviđeno","Stvarno","Odstupanje"]
[null,"Ukupni prihod",{"$f":"Prihod[[#Totals],[Predviđeno]]","v":{"v":5700,"d":"5,700"}},{"$f":"Prihod[[#Totals],[Stvarno]]","v":{"v":5500,"d":"5,500"}},{"$f":"Prihod[[#Totals],[Odstupanje]]","v":-200}]
[null,"Ukupan trošak",{"$f":"Trošak[[#Totals],[Predviđeno]]","v":{"v":3603,"d":"3,603"}},{"$f":"Trošak[[#Totals],[Stvarno]]","v":{"v":3655,"d":"3,655"}},{"$f":"Trošak[[#Totals],[Odstupanje]]","v":-52}]
[null,"Ukupna gotovina",{"$f":"C7-C8","v":{"v":2097,"d":"2,097"}},{"$f":"D7-D8","v":{"v":1845,"d":"1,845"}},{"$f":"SUBTOTAL(109,Tok_novca[Odstupanje])","v":-252}]

{"sheet":"Mesečni prihod","index":1,"n_rows":9,"n_cols":5,"rows_kept":9}
[null,{"$f":"Ime","v":"Ime"}]
[null,{"$f":"Naslov_budžeta","v":"Porodični budžet"}]
[null,{"$f":"Mesec","v":"January"}]
[null,{"$f":"Godina","v":2017}]
[null,"Mesečni prihod","Predviđeno","Stvarno","Odstupanje"]
[null,"Prihod 1",{"v":4000,"d":"4,000"},{"v":4000,"d":"4,000"},{"$f":"Prihod[[#This Row],[Stvarno]]-Prihod[[#This Row],[Predviđeno]]","v":0}]
[null,"Prihod 2",{"v":1400,"d":"1,400"},{"v":1500,"d":"1,500"},{"$f":"Prihod[[#This Row],[Stvarno]]-Prihod[[#This Row],[Predviđeno]]","v":100}]
[null,"Ostali prihod",300,0,{"$f":"Prihod[[#This Row],[Stvarno]]-Prihod[[#This Row],[Predviđeno]]","v":-300}]
[null,"Ukupni prihod",{"$f":"SUBTOTAL(109,Prihod[Predviđeno])","v":{"v":5700,"d":"5,700"}},{"$f":"SUBTOTAL(109,Prihod[Stvarno])","v":{"v":5500,"d":"5,500"}},{"$f":"SUBTOTAL(109,Prihod[Odstupanje])","v":-200}]

{"sheet":"Mesečni trošak","index":2,"n_rows":26,"n_cols":5,"rows_kept":26}
[null,{"$f":"Ime","v":"Ime"}]
[null,{"$f":"Naslov_budžeta","v":"Porodični budžet"}]
[null,{"$f":"Mesec","v":"January"}]
[null,{"$f":"Godina","v":2017}]
[null,"Mesečni trošak","Predviđeno","Stvarno","Odstupanje"]
[null,"Iznajmljivanje stana",{"v":1500,"d":"1,500"},{"v":1500,"d":"1,500"},{"$f":"Trošak[[#This Row],[Predviđeno]]-Trošak[[#This Row],[Stvarno]]","v":0}]
[null,"Namirnice",250,280,{"$f":"Trošak[[#This Row],[Predviđeno]]-Trošak[[#This Row],[Stvarno]]","v":-30}]
[null,"Telefon",38,38,{"$f":"Trošak[[#This Row],[Predviđeno]]-Trošak[[#This Row],[Stvarno]]","v":0}]
[null,"Struja/gas",65,78,{"$f":"Trošak[[#This Row],[Predviđeno]]-Trošak[[#This Row],[Stvarno]]","v":-13}]
[null,"Voda/kanalizacija/smeće",25,21,{"$f":"Trošak[[#This Row],[Predviđeno]]-Trošak[[#This Row],[Stvarno]]","v":4}]
[null,"Kablovska televizija",75,83,{"$f":"Trošak[[#This Row],[Predviđeno]]-Trošak[[#This Row],[Stvarno]]","v":-8}]
[null,"Internet",60,60,{"$f":"Trošak[[#This Row],[Predviđeno]]-Trošak[[#This Row],[Stvarno]]","v":0}]
[null,"Održavanje/popravka",0,60,{"$f":"Trošak[[#This Row],[Predviđeno]]-Trošak[[#This Row],[Stvarno]]","v":-60}]
[null,"Briga o detetu",180,150,{"$f":"Trošak[[#This Row],[Predviđeno]]-Trošak[[#This Row],[Stvarno]]","v":30}]
[null,"Školarina",250,250,{"$f":"Trošak[[#This Row],[Predviđeno]]-Trošak[[#This Row],[Stvarno]]","v":0}]
[null,"Ljubimci",75,80,{"$f":"Trošak[[#This Row],[Predviđeno]]-Trošak[[#This Row],[Stvarno]]","v":-5}]
[null,"Prevoz",280,260,{"$f":"Trošak[[#This Row],[Predviđeno]]-Trošak[[#This Row],[Stvarno]]","v":20}]
[null,"Lična nega",75,65,{"$f":"Trošak[[#This Row],[Predviđeno]]-Trošak[[#This Row],[Stvarno]]","v":10}]
[null,"Osiguranje",255,255,{"$f":"Trošak[[#This Row],[Predviđeno]]-Trošak[[#This Row],[Stvarno]]","v":0}]
[null,"Kreditne kartice",100,100,{"$f":"Trošak[[#This Row],[Predviđeno]]-Trošak[[#This Row],[Stvarno]]","v":0}]
[null,"Zajmovi",0,0,{"$f":"Trošak[[#This Row],[Predviđeno]]-Trošak[[#This Row],[Stvarno]]","v":0}]
[null,"Porezi",0,0,{"$f":"Trošak[[#This Row],[Predviđeno]]-Trošak[[#This Row],[Stvarno]]","v":0}]
[null,"Pokloni/dobrotvorna davanja",150,150,{"$f":"Trošak[[#This Row],[Predviđeno]]-Trošak[[#This Row],[Stvarno]]","v":0}]
[null,"Štednja",225,225,{"$f":"Trošak[[#This Row],[Predviđeno]]-Trošak[[#This Row],[Stvarno]]","v":0}]
[null,"Drugo",0,0,{"$f":"Trošak[[#This Row],[Predviđeno]]-Trošak[[#This Row],[Stvarno]]","v":0}]
[null,"Ukupno",{"$f":"SUBTOTAL(109,Trošak[Predviđeno])","v":{"v":3603,"d":"3,603"}},{"$f":"SUBTOTAL(109,Trošak[Stvarno])","v":{"v":3655,"d":"3,655"}},{"$f":"SUBTOTAL(109,Trošak[Odstupanje])","v":-52}]

{"sheet":"PODACI IZ GRAFIKONA","index":3,"n_rows":6,"n_cols":4,"rows_kept":6,"hidden":true}
[null,"PODACI IZ GRAFIKONA"]
[]
[null,null,"Predviđeno","Stvarno"]
[null,"Tok novca",{"$f":"Tok_novca[[#Totals],[Predviđeno]]","v":2097},{"$f":"Tok_novca[[#Totals],[Stvarno]]","v":1845}]
[null,"Mesečni prihod",{"$f":"Prihod[[#Totals],[Predviđeno]]","v":5700},{"$f":"Prihod[[#Totals],[Stvarno]]","v":5500}]
[null,"Mesečni trošak",{"$f":"Trošak[[#Totals],[Predviđeno]]","v":3603},{"$f":"Trošak[[#Totals],[Stvarno]]","v":3655}]